No. of Trans,Dept Family,Entity Name,Cert Date,Supplier Name,Reference,Gross Amt,Group/Department,Type of Expenditure - Subjective Codes,
1,DCMS,EH,02/01/2013,Feilden Clegg Bradley Studios LLP,0040015733,"100,884.00 ",Heritage Protection & Planning Group - Nat. Planning & Conservation Department,Commissioned architects,
2,DCMS,EH,16/01/2013,Feilden Clegg Bradley Studios LLP,0040018050,"57,516.00 ",Heritage Protection & Planning Group - Nat. Planning & Conservation Department,Commissioned architects,
3,DCMS,EH,16/01/2013,Feilden Clegg Bradley Studios LLP,0040018141,"62,197.20 ",Heritage Protection & Planning Group - Nat. Planning & Conservation Department,Events production,
4,DCMS,EH,25/02/2013,Feilden Clegg Bradley Studios LLP,0040021507,"137,233.20 ",Heritage Protection & Planning Group - Nat. Planning & Conservation Department,Commissioned architects,
5,DCMS,EH,25/02/2013,Feilden Clegg Bradley Studios LLP,0040021710,"52,545.60 ",Heritage Protection & Planning Group - Nat. Planning & Conservation Department,Commissioned architects,
6,DCMS,EH,28/01/2013,ESRI (UK) Ltd,0040020857,"192,658.16 ",Resources Group - IMT Department,Software Maintenance,
7,DCMS,EH,25/01/2013,Oxford Archaeological Unit Ltd,0040016247,"30,000.00 ",Heritage Protection & Planning Group - Heritage Protection Department,Hist Environ Prog Projects Gra,
8,DCMS,EH,31/01/2013,Chris Blandford Associates,0040021092,"9,000.00 ",National Collections Group - Capital Investment Programme,WIP Professional Works Advice,
9,DCMS,EH,31/01/2013,Chris Blandford Associates,0040021092,"9,600.00 ",National Collections Group - Capital Investment Programme,WIP Professional Works Advice,
10,DCMS,EH,31/01/2013,Chris Blandford Associates,0040021092,"10,800.00 ",National Collections Group - Capital Investment Programme,WIP Professional Works Advice,
11,DCMS,EH,07/01/2013,Treasure and Son,0040019274,"1,307.71 ",National Collections Group - Property Maintenance Programme,Annual Cyclical Works-Building,
12,DCMS,EH,07/01/2013,Treasure and Son,0040019274,"1,324.97 ",National Collections Group - Curatorial Department,Annual Cyclical Works-Building,
13,DCMS,EH,07/01/2013,Treasure and Son,0040019274,"27,715.55 ",National Collections Group - Property Maintenance Programme,Annual Cyclical Works-Building,
14,DCMS,EH,18/02/2013,Lincolnshire County Council,0040021764,"67,064.40 ",National Collections Group - Local Management Agreements,RO management agreement,
15,DCMS,EH,09/01/2013,W H Smith and R Ensor SAP Scheme,0040019171,"35,516.40 ",Resources Group - Office Estate,Rent - Operating Leases,
16,DCMS,EH,18/02/2013,Wessex Archaeology,0040021677,"30,000.00 ",Heritage Protection & Planning Group - Heritage Protection Department,Maritime Consultants,
17,DCMS,EH,22/02/2013,The National Trust Wiltshire,0040022343,"1,647.60 ",National Collections Group - Local Management Agreements,RO management agreement,
18,DCMS,EH,22/02/2013,The National Trust Wiltshire,0040022343,"30,000.00 ",National Collections Group - Local Management Agreements,RO management agreement,
19,DCMS,EH,07/01/2013,DBR (London) Ltd,0040018834,"37,056.26 ",National Collections Group - Property Maintenance Programme,Planned Maintenance,
20,DCMS,EH,08/02/2013,DBR (London) Ltd,0040021389,"34,670.95 ",National Collections Group - Property Maintenance Programme,Planned Maintenance,
21,DCMS,EH,08/02/2013,PAYE Stonework and Restoration Ltd,0040020900,"234,810.36 ",National Collections Group - Major Conservation Projects,Works for Heritage Buildings,
22,DCMS,EH,13/02/2013,Gillards Worldwide,0040021786,"26,707.16 ",National Collections Group - Historic Properties Department,Storage & warehousing,
23,DCMS,EH,08/01/2013,Historic Property Restoration Ltd,0040019454,363.91 ,National Collections Group - Property Maintenance Programme,Responsive Repairs M & E,
24,DCMS,EH,08/01/2013,Historic Property Restoration Ltd,0040019454,"1,003.85 ",National Collections Group - Property Maintenance Programme,Leased Accomodation Maint,
25,DCMS,EH,08/01/2013,Historic Property Restoration Ltd,0040019454,"4,151.81 ",National Collections Group - Property Maintenance Programme,Responsive Repairs M & E,
26,DCMS,EH,08/01/2013,Historic Property Restoration Ltd,0040019454,"4,662.07 ",National Collections Group - Property Maintenance Programme,Responsive Maint Building,
27,DCMS,EH,08/01/2013,Historic Property Restoration Ltd,0040019454,"4,859.52 ",National Collections Group - Property Maintenance Programme,Responsive Maint Building,
28,DCMS,EH,08/01/2013,Historic Property Restoration Ltd,0040019454,"9,159.66 ",National Collections Group - Property Maintenance Programme,Planned Maintenance,
29,DCMS,EH,08/01/2013,Historic Property Restoration Ltd,0040019454,"17,564.94 ",National Collections Group - Property Maintenance Programme,Planned Maintenance,
30,DCMS,EH,08/01/2013,Historic Property Restoration Ltd,0040019455,725.01 ,National Collections Group - Property Maintenance Programme,Annual Cyclical Work M & E,
31,DCMS,EH,08/01/2013,Historic Property Restoration Ltd,0040019455,"3,233.59 ",National Collections Group - Property Maintenance Programme,Annual Cyclical Works-Building,
32,DCMS,EH,08/01/2013,Historic Property Restoration Ltd,0040019455,"12,181.48 ",National Collections Group - Property Maintenance Programme,Annual Cyclical Work M & E,
33,DCMS,EH,08/01/2013,Historic Property Restoration Ltd,0040019455,"37,752.00 ",National Collections Group - Property Maintenance Programme,Annual Cyclical Works-Building,
34,DCMS,EH,11/01/2013,Historic Property Restoration Ltd,0040019807,"27,637.15 ",National Collections Group - Property Maintenance Programme,Annual Cyclical Works-Building,
35,DCMS,EH,08/02/2013,Historic Property Restoration Ltd,0040021634,378.35 ,National Collections Group - Property Maintenance Programme,Annual Cyclical Work M & E,
36,DCMS,EH,08/02/2013,Historic Property Restoration Ltd,0040021634,491.75 ,National Collections Group - Property Maintenance Programme,Leased Accomodation Maint,
37,DCMS,EH,08/02/2013,Historic Property Restoration Ltd,0040021634,"1,470.60 ",National Collections Group - Property Maintenance Programme,Leased Accomodation Maint,
38,DCMS,EH,08/02/2013,Historic Property Restoration Ltd,0040021634,"1,698.26 ",National Collections Group - Property Maintenance Programme,Annual Cyclical Works-Building,
39,DCMS,EH,08/02/2013,Historic Property Restoration Ltd,0040021634,"9,527.11 ",National Collections Group - Property Maintenance Programme,Annual Cyclical Works-Building,
40,DCMS,EH,08/02/2013,Historic Property Restoration Ltd,0040021634,"11,680.51 ",National Collections Group - Property Maintenance Programme,Annual Cyclical Work M & E,
41,DCMS,EH,30/01/2013,Ratcliffes,0040021101,"45,217.92 ",Resources Group - Office Estate,Insurance,
42,DCMS,EH,18/02/2013,Cotswold Archaeology,0040022010,"27,600.00 ",Heritage Protection & Planning Group - Heritage Protection Department,Hist Environ Prog Projects Gra,
43,DCMS,EH,13/02/2013,EDF Energy,0040017441,67.61 ,Resources Group - Human Resources Department,Electricity,
44,DCMS,EH,13/02/2013,EDF Energy,0040017441,"25,845.28 ",Resources Group - Human Resources Department,Electricity,
45,DCMS,EH,08/01/2013,ISS Facility Services Ltd - Security,0040018354,"26,880.00 ",National Collections Group - Property Maintenance Programme,Security Guard & Monitor Stati,
46,DCMS,EH,05/02/2013,ISS Facility Services Ltd - Security,0040020545,"26,880.00 ",National Collections Group - Property Maintenance Programme,Security Guard & Monitor Stati,
47,DCMS,EH,20/02/2013,Enterprise Rent A Car UK Ltd,0020050529,"32,154.53 ",Resources Group - Corporate,Car Hire,
48,DCMS,EH,28/02/2013,Ballista Media Ltd,0040023105,"26,400.00 ",National Collections Group - Historic Properties Department,Training,
49,DCMS,EH,21/01/2013,Pace Fuelcare Ltd,0040019614,"26,547.44 ",National Collections Group - Historic Properties Department,Gas & Oil,
50,DCMS,EH,28/02/2013,Pace Fuelcare Ltd,0040022470,"27,878.03 ",National Collections Group - Historic Properties Department,Gas & Oil,
51,DCMS,EH,06/02/2013,William Hardie Design,0040020814,"34,959.24 ",National Collections Group - Capital Investment Programme,WIP Operational Building Works,
52,DCMS,EH,15/02/2013,William Hardie Design,0040021833,"27,967.44 ",National Collections Group - Capital Investment Programme,WIP Operational Building Works,
53,DCMS,EH,10/01/2013,Wansdyke Security Ltd,0040018863,"42,483.17 ",Resources Group - IMT Department,Other Administration,
54,DCMS,EH,25/01/2013,Chesters Farming Partnership,0040020549,"26,441.00 ",National Collections Group - Historic Properties Department,Rent - Operating Leases,
55,DCMS,EH,03/01/2013,Fairhurst Ward Abbotts Ltd,0040018870,"80,418.99 ",National Collections Group - Major Conservation Projects,WIP Operational Building Works,
56,DCMS,EH,07/02/2013,Fairhurst Ward Abbotts Ltd,0040020852,"55,418.82 ",National Collections Group - Major Conservation Projects,WIP Operational Building Works,
57,DCMS,EH,08/02/2013,Kier Contruction Ltd,0040020508,"116,976.00 ",National Collections Group - Capital Investment Programme,WIP Refurb & Fitting Out,
58,DCMS,EH,31/01/2013,Capita Secure Information Solutions Ltd,0040021143,"251,629.36 ",Resources Group - IMT Department,ITFM,
59,DCMS,EH,19/02/2013,Capita Secure Information Solutions Ltd,0040022223,"28,306.08 ",Resources Group - IMT Department,ITFM,
60,DCMS,EH,18/02/2013,Virgin Media,0040022279,"40,801.20 ",Resources Group - IMT Department,Telephone and Communications,
61,DCMS,EH,17/01/2013,Purcell,0040019908,"33,220.80 ",National Collections Group - Capital Investment Programme,WIP Operational Building Works,
62,DCMS,EH,07/02/2013,CB Richard Ellis Ltd,0040021516,"37,835.26 ",Resources Group - Office Estate,Building Service Charges,
63,DCMS,EH,28/02/2013,Computer Software Group Ltd,0040022927,"1,289.17 ",Resources Group - IMT Department,Software Maintenance,
64,DCMS,EH,28/02/2013,Computer Software Group Ltd,0040022927,"1,783.64 ",Resources Group - IMT Department,Software Maintenance,
65,DCMS,EH,28/02/2013,Computer Software Group Ltd,0040022927,"21,377.33 ",Resources Group - IMT Department,Software Maintenance,
66,DCMS,EH,28/02/2013,Computer Software Group Ltd,0040022927,"32,431.12 ",Resources Group - IMT Department,Software Maintenance,
67,DCMS,EH,03/01/2013,Universal Stone Limited,0040018414,"32,088.61 ",National Collections Group - Major Conservation Projects,Works for Heritage Buildings,
68,DCMS,EH,09/01/2013,Universal Stone Limited,0040018942,"26,060.40 ",National Collections Group - Major Conservation Projects,Works for Heritage Buildings,
69,DCMS,EH,23/01/2013,Universal Stone Limited,0040020509,"34,463.43 ",National Collections Group - Major Conservation Projects,Works for Heritage Buildings,
70,DCMS,EH,18/02/2013,Universal Stone Limited,0040022338,"40,196.20 ",National Collections Group - Major Conservation Projects,Works for Heritage Buildings,
71,DCMS,EH,30/01/2013,Skanska Rashleigh Weatherfoil Ltd,0040020717,"143,077.20 ",National Collections Group - Curatorial Department,WIP Operational Building Works,
72,DCMS,EH,25/02/2013,G.J. Banks (I.W.) Ltd,0040022533,"39,084.10 ",National Collections Group - Property Maintenance Programme,Planned Maintenance,
73,DCMS,EH,04/01/2013,Specialist Computer Centres plc,0040019183,"25,585.20 ",Resources Group - IMT Department,Software Licences > 10k,
74,DCMS,EH,20/02/2013,Specialist Computer Centres plc,0040021494,"39,934.80 ",Resources Group - IMT Department,WIP Asset Purch Under 10k,
75,DCMS,EH,15/02/2013,Messenger Construction Ltd,0040021977,"60,168.00 ",Heritage Protection & Planning Group - Nat. Planning & Conservation Department,Works for Heritage Buildings,
76,DCMS,EH,08/01/2013,Vinci Construction UK Ltd,0040019451,"2,151.60 ",National Collections Group - Capital Investment Programme,WIP Professional Works Advice,
77,DCMS,EH,08/01/2013,Vinci Construction UK Ltd,0040019451,"4,827.60 ",National Collections Group - Capital Investment Programme,WIP Operational Building Works,
78,DCMS,EH,08/01/2013,Vinci Construction UK Ltd,0040019451,"12,874.80 ",National Collections Group - Capital Investment Programme,Works for Heritage Buildings,
79,DCMS,EH,08/01/2013,Vinci Construction UK Ltd,0040019451,"14,452.80 ",National Collections Group - Capital Investment Programme,Works for Heritage Buildings,
80,DCMS,EH,08/01/2013,Vinci Construction UK Ltd,0040019451,"16,713.60 ",National Collections Group - Capital Investment Programme,WIP Operational Building Works,
81,DCMS,EH,08/01/2013,Vinci Construction UK Ltd,0040019451,"16,876.80 ",National Collections Group - Capital Investment Programme,Works for Heritage Buildings,
82,DCMS,EH,08/01/2013,Vinci Construction UK Ltd,0040019451,"51,776.40 ",National Collections Group - Capital Investment Programme,Works for Heritage Buildings,
83,DCMS,EH,08/01/2013,Vinci Construction UK Ltd,0040019451,"94,808.40 ",National Collections Group - Capital Investment Programme,WIP Operational Building Works,
84,DCMS,EH,08/01/2013,Vinci Construction UK Ltd,0040019451,"346,036.80 ",National Collections Group - Capital Investment Programme,WIP Operational Building Works,
85,DCMS,EH,07/02/2013,Vinci Construction UK Ltd,0040021551,"14,048.40 ",National Collections Group - Capital Investment Programme,Works for Heritage Buildings,
86,DCMS,EH,07/02/2013,Vinci Construction UK Ltd,0040021551,"18,429.60 ",National Collections Group - Capital Investment Programme,Works for Heritage Buildings,
87,DCMS,EH,07/02/2013,Vinci Construction UK Ltd,0040021551,"21,234.00 ",National Collections Group - Capital Investment Programme,WIP Operational Building Works,
88,DCMS,EH,07/02/2013,Vinci Construction UK Ltd,0040021551,"25,161.60 ",National Collections Group - Capital Investment Programme,WIP Professional Works Advice,
89,DCMS,EH,07/02/2013,Vinci Construction UK Ltd,0040021551,"55,550.40 ",National Collections Group - Capital Investment Programme,Works for Heritage Buildings,
90,DCMS,EH,07/02/2013,Vinci Construction UK Ltd,0040021551,"80,944.80 ",National Collections Group - Capital Investment Programme,WIP Operational Building Works,
91,DCMS,EH,07/02/2013,Vinci Construction UK Ltd,0040021551,"94,068.00 ",National Collections Group - Capital Investment Programme,WIP Operational Building Works,
92,DCMS,EH,07/02/2013,Vinci Construction UK Ltd,0040021551,"105,822.00 ",National Collections Group - Capital Investment Programme,Works for Heritage Buildings,
93,DCMS,EH,07/02/2013,Vinci Construction UK Ltd,0040021551,"462,105.60 ",National Collections Group - Capital Investment Programme,WIP Operational Building Works,
94,DCMS,EH,17/01/2013,TNS UK Ltd,0040019314,"7,764.00 ",National Collections Group - Marketing Department,Promotional Material,
95,DCMS,EH,17/01/2013,TNS UK Ltd,0040019314,"26,736.00 ",National Collections Group - Marketing Department,Promotional Material,
96,DCMS,EH,07/01/2013,Smith & Milton Ltd,0040018183,"33,344.40 ",National Collections Group - Marketing Department,Marketing Creative,
97,DCMS,EH,22/01/2013,Smith & Milton Ltd,0040019188,"28,080.00 ",National Collections Group - Marketing Department,Marketing Creative,
98,DCMS,EH,22/01/2013,Smith & Milton Ltd,0040019189,"33,840.00 ",National Collections Group - Marketing Department,Marketing Creative,
99,DCMS,EH,18/02/2013,Smith & Milton Ltd,0040021616,"31,188.00 ",National Collections Group - Marketing Department,Marketing Creative,
100,DCMS,EH,27/02/2013,Nu-Weld Engineering Services Ltd,0040023035,"101,505.29 ",National Collections Group - Capital Investment Programme,WIP Operational Building Works,
101,DCMS,EH,22/02/2013,Nexus Fire & Security Ltd,0040022653,"33,883.20 ",Resources Group - Office Estate,Planned Maintenance,
102,DCMS,EH,26/02/2013,Merac Systems Ltd,0040022902,"45,780.00 ",National Collections Group - Historic Properties Department,Software Licences <10k,
103,DCMS,EH,12/02/2013,ICCROM,0020050451,"106,544.92 ",Heritage Protection & Planning Group - Nat. Planning & Conservation Department,Corporate subscriptions,
104,DCMS,EH,28/01/2013,ENTERPRISE RENT-A-CAR UK LTD,0020050364,"33,183.70 ",Resources Group - Corporate,Car Hire,
105,DCMS,EH,18/02/2013,Hadrian's Wall Trust,0090513531,"55,628.00 ",Heritage Protection & Planning Group - Nat. Planning & Conservation Department,GRANTS PAYABLE - OTHER GRANTS,
106,DCMS,EH,14/02/2013,Newcastle - Under - Lyme Borough Council,0090513521,"38,880.00 ",Heritage Protection & Planning Group - Nat. Planning & Conservation Department,GRANTS PAYABLE - AREA,
107,DCMS,EH,14/02/2013,Stoke - On - Trent  City Council,0090513520,"34,707.00 ",Heritage Protection & Planning Group - Nat. Planning & Conservation Department,GRANTS PAYABLE - AREA,
108,DCMS,EH,18/02/2013,Diocese of Lincoln,0090513529,"33,268.00 ",Heritage Protection & Planning Group - Nat. Planning & Conservation Department,GRANTS PAYABLE - OTHER GRANTS,
109,DCMS,EH,14/02/2013,Dudley Metropolitan Borough Council,0090513522,"27,466.00 ",Heritage Protection & Planning Group - Nat. Planning & Conservation Department,GRANTS PAYABLE - AREA,
110,DCMS,EH,21/01/2013,The Archbishop's Council of the Church of England,0090513500,"56,000.00 ",Heritage Protection & Planning Group - Nat. Planning & Conservation Department,GRANTS PAYABLE - OTHER GRANTS,
111,DCMS,EH,09/01/2013,Combermere Abbey Restoration Fund,0090513493,"37,370.00 ",Heritage Protection & Planning Group - Nat. Planning & Conservation Department,GRANTS PAYABLE - HISTORIC BUILDINGS,
112,DCMS,EH,26/02/2013,Wiltshire Council,0081002334,"27,922.20 ",Heritage Protection & Planning Group - Heritage Protection Department,Historic Environ Prog Grants,
113,DCMS,EH,13/02/2013,West Yorkshire Archaeology Service,0081002282,"25,999.00 ",Heritage Protection & Planning Group - Heritage Protection Department,Historic Environ Prog Grants,
114,DCMS,EH,13/02/2013,West Yorkshire Archaeology Service,0081002283,"40,000.00 ",Heritage Protection & Planning Group - Heritage Protection Department,Historic Environ Prog Grants,
115,DCMS,EH,13/02/2013,Cotswold Archaeology,0081002292,"40,000.00 ",Heritage Protection & Planning Group - Heritage Protection Department,Historic Environ Prog Grants,
116,DCMS,EH,13/02/2013,Newcastle University,0081002295,"29,166.67 ",Heritage Protection & Planning Group - Heritage Protection Department,Historic Environ Prog Grants,
117,DCMS,EH,18/01/2013,Manchester Historic Buildings Trst,0082001023,"48,250.00 ",Heritage Protection & Planning Group - Nat. Planning & Conservation Department,GRANTS PAYABLE - HISTORIC BUILDINGS,
118,DCMS,EH,15/02/2013,L B Alexandra Park & Palace,0082001203,"32,318.00 ",Heritage Protection & Planning Group - Nat. Planning & Conservation Department,GRANTS PAYABLE - HISTORIC BUILDINGS,
119,DCMS,EH,15/02/2013,The Save Trust,0082001197,"108,710.00 ",Heritage Protection & Planning Group - Nat. Planning & Conservation Department,GRANTS PAYABLE - HISTORIC BUILDINGS,
120,DCMS,EH,18/01/2013,All Saints Stand PCC,0082001013,"66,400.00 ",Heritage Protection & Planning Group - Nat. Planning & Conservation Department,GRANTS PAYABLE - PLACES OF WORSHIP,
121,DCMS,EH,26/02/2013,St Wilfrid PCC Halton,0082001262,"212,850.00 ",Heritage Protection & Planning Group - Nat. Planning & Conservation Department,GRANTS PAYABLE - PLACES OF WORSHIP,
122,DCMS,EH,26/02/2013,St Wilfrid PCC Halton,0082001265,"113,400.00 ",Heritage Protection & Planning Group - Nat. Planning & Conservation Department,GRANTS PAYABLE - PLACES OF WORSHIP,
123,DCMS,EH,19/02/2013,Ordsall St Clements PCC,0082001221,"74,800.00 ",Heritage Protection & Planning Group - Nat. Planning & Conservation Department,GRANTS PAYABLE - PLACES OF WORSHIP,
124,DCMS,EH,01/02/2013,All Hallows Easton PCC,0082001096,"97,000.00 ",Heritage Protection & Planning Group - Nat. Planning & Conservation Department,GRANTS PAYABLE - PLACES OF WORSHIP,
125,DCMS,EH,22/02/2013,Ickworth Church Conservation Trust,0082001234,"37,440.00 ",Heritage Protection & Planning Group - Nat. Planning & Conservation Department,GRANTS PAYABLE - HISTORIC BUILDINGS,
126,DCMS,EH,22/02/2013,St James PCC,0082001241,"25,600.00 ",Heritage Protection & Planning Group - Nat. Planning & Conservation Department,GRANTS PAYABLE - PLACES OF WORSHIP,
127,DCMS,EH,08/02/2013,PCC St Gabriels,0082001152,"58,000.00 ",Heritage Protection & Planning Group - Nat. Planning & Conservation Department,GRANTS PAYABLE - PLACES OF WORSHIP,
128,DCMS,EH,22/01/2013,St Marys Stockport PCC,0082001046,"75,500.00 ",Heritage Protection & Planning Group - Nat. Planning & Conservation Department,GRANTS PAYABLE - PLACES OF WORSHIP
129,DCMS,EH,15/01/2013,All Saints Elton PCC,0082000993,"79,500.00 ",Heritage Protection & Planning Group - Nat. Planning & Conservation Department,GRANTS PAYABLE - PLACES OF WORSHIP
130,DCMS,EH,01/02/2013,St Paul's Parochial Church Council,0082001101,"26,930.00 ",Heritage Protection & Planning Group - Nat. Planning & Conservation Department,GRANTS PAYABLE - PLACES OF WORSHIP
131,DCMS,EH,22/01/2013,Croxton PCC,0082001044,"34,500.00 ",Heritage Protection & Planning Group - Nat. Planning & Conservation Department,GRANTS PAYABLE - PLACES OF WORSHIP
132,DCMS,EH,22/02/2013,PCC of St Chad,0082001240,"47,000.00 ",Heritage Protection & Planning Group - Nat. Planning & Conservation Department,GRANTS PAYABLE - PLACES OF WORSHIP
133,DCMS,EH,18/01/2013,Termhouse (Tudor House) Management Ltd,0082001022,"55,714.00 ",Heritage Protection & Planning Group - Nat. Planning & Conservation Department,GRANTS PAYABLE - HISTORIC BUILDINGS
134,DCMS,EH,12/02/2013,The Corporate Body of Lincoln Cathedral,0082001180,"37,500.00 ",Heritage Protection & Planning Group - Nat. Planning & Conservation Department,GRANTS PAYABLE - HISTORIC BUILDINGS
135,DCMS,EH,22/02/2013,Ingham PCC,0082001238,"36,000.00 ",Heritage Protection & Planning Group - Nat. Planning & Conservation Department,GRANTS PAYABLE - PLACES OF WORSHIP
136,DCMS,EH,08/02/2013,"All Saint's, Eyeworth PCC",0082001149,"31,500.00 ",Heritage Protection & Planning Group - Nat. Planning & Conservation Department,GRANTS PAYABLE - PLACES OF WORSHIP
137,DCMS,EH,18/01/2013,East Barwick Church Committee,0082001012,"63,500.00 ",Heritage Protection & Planning Group - Nat. Planning & Conservation Department,GRANTS PAYABLE - PLACES OF WORSHIP
138,DCMS,EH,25/01/2013,The Parish of Yate New Town PCC,0082001063,"63,500.00 ",Heritage Protection & Planning Group - Nat. Planning & Conservation Department,GRANTS PAYABLE - PLACES OF WORSHIP
139,DCMS,EH,15/01/2013,Braydeston PCC,0082000992,"42,500.00 ",Heritage Protection & Planning Group - Nat. Planning & Conservation Department,GRANTS PAYABLE - PLACES OF WORSHIP
140,DCMS,EH,15/02/2013,Springline Parish PCC & Brattleby Village Church Com,0082001192,"54,000.00 ",Heritage Protection & Planning Group - Nat. Planning & Conservation Department,GRANTS PAYABLE - PLACES OF WORSHIP
141,DCMS,EH,26/02/2013,Somerset Building Preservation Trust,0082001266,"41,100.00 ",Heritage Protection & Planning Group - Nat. Planning & Conservation Department,GRANTS PAYABLE - HISTORIC BUILDINGS
142,DCMS,EH,29/01/2013,St Mary's Martham PCC,0082001080,"52,000.00 ",Heritage Protection & Planning Group - Nat. Planning & Conservation Department,GRANTS PAYABLE - PLACES OF WORSHIP
143,DCMS,EH,18/01/2013,Croyland Abbey PCC,0082001015,"34,200.00 ",Heritage Protection & Planning Group - Nat. Planning & Conservation Department,GRANTS PAYABLE - PLACES OF WORSHIP
144,DCMS,EH,18/01/2013,PCC of Thrybergh St Leonard's,0082001016,"47,217.00 ",Heritage Protection & Planning Group - Nat. Planning & Conservation Department,GRANTS PAYABLE - PLACES OF WORSHIP,
145,DCMS,EH,22/01/2013,St Andrew's Church Wootton PCC,0082001056,"64,500.00 ",Heritage Protection & Planning Group - Nat. Planning & Conservation Department,GRANTS PAYABLE - PLACES OF WORSHIP,
146,DCMS,EH,22/01/2013,PCC of Christ Church,0082001049,"59,600.00 ",Heritage Protection & Planning Group - Nat. Planning & Conservation Department,GRANTS PAYABLE - PLACES OF WORSHIP,
147,DCMS,EH,25/01/2013,St Mary Magdalene PCC,0082001064,"40,703.00 ",Heritage Protection & Planning Group - Nat. Planning & Conservation Department,GRANTS PAYABLE - PLACES OF WORSHIP,
148,DCMS,EH,18/01/2013,"PCC of St Martins Church, North Owersby",0082001021,"37,000.00 ",Heritage Protection & Planning Group - Nat. Planning & Conservation Department,GRANTS PAYABLE - PLACES OF WORSHIP,
149,DCMS,EH,22/01/2013,PCC of St James in the City,0082001051,"40,743.00 ",Heritage Protection & Planning Group - Nat. Planning & Conservation Department,GRANTS PAYABLE - HISTORIC BUILDINGS,
150,DCMS,EH,29/01/2013,St John's PCC,0082001082,"27,500.00 ",Heritage Protection & Planning Group - Nat. Planning & Conservation Department,GRANTS PAYABLE - PLACES OF WORSHIP,
151,DCMS,EH,12/02/2013,Sutton-in-Ashfield United Reformed Churc,0082001176,"29,600.00 ",Heritage Protection & Planning Group - Nat. Planning & Conservation Department,GRANTS PAYABLE - PLACES OF WORSHIP,
152,DCMS,EH,01/02/2013,PCC of St Chads,0082001102,"28,350.00 ",Heritage Protection & Planning Group - Nat. Planning & Conservation Department,GRANTS PAYABLE - PLACES OF WORSHIP,
153,DCMS,EH,05/02/2013,Shropshire Council,0082001132,"73,000.00 ",Heritage Protection & Planning Group - Nat. Planning & Conservation Department,GRANTS PAYABLE - HISTORIC BUILDINGS,
154,DCMS,EH,05/02/2013,The Dean & Chapter of Coventry Cathedral,0082001137,"54,010.00 ",Heritage Protection & Planning Group - Nat. Planning & Conservation Department,GRANTS PAYABLE - HISTORIC BUILDINGS,
155,DCMS,EH,05/02/2013,PCC St Saviour's Bamber Bridge,0082001138,"69,500.00 ",Heritage Protection & Planning Group - Nat. Planning & Conservation Department,GRANTS PAYABLE - PLACES OF WORSHIP,
156,DCMS,EH,15/02/2013,The National Trust,0082001206,"45,000.00 ",Heritage Protection & Planning Group - Nat. Planning & Conservation Department,GRANTS PAYABLE - HISTORIC BUILDINGS,
157,DCMS,EH,19/02/2013,Pentney Abbey,0082001232,"86,100.00 ",Heritage Protection & Planning Group - Nat. Planning & Conservation Department,GRANTS PAYABLE - HISTORIC BUILDINGS,
158,DCMS,EH,31/01/2013,Lyme Bay Cider Company Ltd,0060000205,"37,136.73 ",National Collections Group - Historic Properties Department,Retail Goods & Souvenirs Purch,
